Cogmind - Beta 10.2 @@@ ROGUE MODE // 2022.01.20 @ 00:29:51 Player: xerxia Result: Destroyed by G-47 Trooper with Particle Gun Performance ------------- Evolutions (0) 0 Regions Visited (1) 200 Robots Destroyed (11) 55 Value Destroyed (321) 321 Prototype IDs (0) 0 Alien Tech Used (0) 0 Bonus (0) 0 TOTAL SCORE: 576 Bonus ------- None Cogmind --------- Core Integrity 0/250 Matter 248/300 Energy 100/100 System Corruption 0% Temperature Cool (9) Movement Core (100) Ox1 Location -10/Materials Parts ------- > --- POWER (1) -------- (None) > --- PROPULSION (2) --- (None) > --- UTILITY (2) ------ Small Storage Unit Propulsion Shielding > --- WEAPON (2) ------- (None) > --- INVENTORY (6) ---- Light Ion Engine Light Ion Engine Large Battery (300) High-capacity Matter Pod (31) Propulsion Shielding Peak State ------------ > --- POWER ------------ Ion Engine > --- PROPULSION ------- Light Treads Light Treads > --- UTILITY ---------- Small Storage Unit Propulsion Shielding > --- WEAPON ----------- Assault Rifle Light Cannon > --- INVENTORY -------- Light Ion Engine Light Ion Engine Large Battery High-capacity Matter Pod Propulsion Shielding EM Pulse Gun [Rating: 7] Favorites ----------- Power Ion Engine Engine Ion Engine Propulsion Light Treads Treads Light Treads Utility Small Storage Unit Storage Small Storage Unit Protection Propulsion Shielding Weapon Assault Rifle Energy Gun EM Pulse Gun Ballistic Gun Assault Rifle Ballistic Cannon Light Cannon Build | -11 -10 ------- Run | Scr Mat Slots Evolved . | . . Power . | . . Propulsion . | . . Utility . | . . Weapon . | . . Parts Attached 10 | 6 4 Power 2 | 1 1 Engine 2 | 1 1 Core . | . . Reactor . | . . Propulsion 2 | 2 . Treads 2 | 2 . Leg . | . . Wheel . | . . Hover . | . . Flight . | . . Utility 2 | 1 1 Device . | . . Storage 1 | 1 . Processor . | . . Hackware . | . . Protection 1 | . 1 Artifact . | . . Weapon 4 | 2 2 Energy Gun 2 | 1 1 Energy Cannon . | . . Ballistic Gun 1 | 1 . Ballistic Cannon 1 | . 1 Launcher . | . . Special Weapon . | . . Impact Weapon . | . . Slashing Weapon . | . . Piercing Weapon . | . . Special Melee Weapon . | . . Unidentified Prototypes . | . . Parts Lost 8 | . 8 Power 2 | . 2 Propulsion 2 | . 2 Utility . | . . Weapon 4 | . 4 Highest Loss Streak 6 | . 6 Average Slot Usage (%) 86 | . 86 Engine 12 | . 12 Treads 26 | . 26 Storage 14 | . 14 Protection 4 | . 4 Energy Gun 8 | . 8 Ballistic Gun 13 | . 13 Ballistic Cannon 4 | . 4 Naked Turns . | . . Heaviest Build 15 | 13 15 Greatest Support 40 | 40 40 Greatest Overweight (x) 3 | 3 . Average Overweight (x) . | . . Largest Inventory Capacity 6 | 6 6 Average Capacity 5 | 5 6 Most Carried 6 | 4 6 Average Carried 4 | 2 4 Final Capacity 6 | 6 6 Final Carried 5 | 2 5 Class Distribution -------------------- 100% | Mutant Dominant Class ---------------- Mutant | -10/Materials Resources | -11 -10 ----------- Run | Scr Mat Matter Collected 376 | 260 116 Remotely . | . . Salvage Created 528 | 87 441 Parts 18 | 1 17 Haulers Intercepted . | . . Recyclers Shooed . | . . Parts Field Recycled . | . . Retrieved Matter . | . . Parts Self-Destructed . | . . Prevented . | . . Kills | -11 -10 ------- Run | Scr Mat Combat Hostiles Destroyed 8 | . 8 Guns 5 | . 5 Cannons 2 | . 2 AOE 1 | . 1 Classes Destroyed 3 | 1 2 Worker 1 | . 1 Recycler 2 | 1 1 Grunt 8 | . 8 Best Kill Streak 4 | 1 4 Combat Bots Only 2 | . 2 Max Kills in Single Turn 1 | 1 1 Gunslinging . | . . Exploded 1 | . 1 Melee . | . . Uniques/NPCs Destroyed . | . . Combat | -11 -10 -------- Run | Scr Mat Damage Taken 1116 | . 1116 Core 262 | . 262 Absorbed by Shields . | . . Core Remaining (%) 100 | 100 . Volleys Fired 50 | 5 45 Largest 2 | 1 2 Hottest 60 | 40 60 Shots Fired 87 | 5 82 Gun 73 | 5 68 Cannon 14 | . 14 Launcher . | . . Special . | . . Kinetic 59 | . 59 Thermal . | . . Explosive . | . . Electromagnetic 28 | 5 23 Robot Hit Streak 12 | 5 12 Robot Miss Streak 3 | . 3 Penetration Max . | . . Secondary Targets 1 | . 1 Max Gunslinging Chain 1 | . 1 Shots Hit Robots 66 | 5 61 Core Hits 27 | 2 25 Critical Hits 1 | . 1 Critical Kills 1 | . 1 Critical Parts Destroyed . | . . Melee Attacks . | . . Impact . | . . Slashing . | . . Piercing . | . . Sneak Attacks . | . . Combat Hostiles . | . . Follow-up Attacks . | . . Damage Inflicted 1069 | 65 1004 Guns 683 | 65 618 Cannons 188 | . 188 Explosions 177 | . 177 Melee . | . . Ramming 21 | . 21 Kinetic 554 | . 554 Thermal 177 | . 177 Explosive . | . . Electromagnetic 317 | 65 252 Impact . | . . Slashing . | . . Piercing . | . . Highest Corruption . | . . Average Corruption . | . . Corruption Purged . | . . Overload Shots . | . . Overflow Damage 8 | . 8 Projectiles 5 | . 5 Explosions 3 | . 3 Melee . | . . Knockbacks 6 | . 6 Impact . | . . Kinetic 6 | . 6 Secondary . | . . Self-Inflicted Damage 20 | . 20 Shots 1 | . 1 Rammed 17 | . 17 Targets Rammed 17 | . 17 Kicked . | . . Crushed . | . . Highest Temperature 206 | . 206 Average Temperature 67 | . 67 Received Heat Transfer 618 | . 618 Siege Activations . | . . Robots Corrupted . | . . Combat Hostiles . | . . Parts Fried 2 | . 2 Impact Corruptions . | . . Robots Melted . | . . Combat Hostiles . | . . Parts Melted . | . . Heat Transferred 200 | . 200 Parts Sabotaged . | . . Parts Stolen . | . . Parts Stripped . | . . Power Chain Reactions 2 | . 2 Missiles Intercepted . | . . Alert | -11 -10 ------- Run | Scr Mat Peak Influence 132 | 5 132 Initial 3 | . 3 Average 41 | 2 48 Maximum Alert Level . | . . Low Security (%) 100 | 100 100 Level 1 . | . . Level 2 . | . . Level 3 . | . . Level 4 . | . . Level 5 . | . . High Security . | . . Max Security . | . . Squads Dispatched 2 | . 2 Investigation 1 | . 1 Extermination . | . . Reinforcement 1 | . 1 Assault . | . . Garrison . | . . Intercept . | . . Construction Impeded . | . . Haulers Reinforced . | . . Stealth | -11 -10 --------- Run | Scr Mat Distress Signals . | . . Communications Jammed . | . . Distress Signals . | . . Times Spotted 13 | . 13 Peak Tracking Total 4 | . 4 Tactical Retreats . | . . Traps | -11 -10 ------- Run | Scr Mat Traps Triggered 1 | . 1 Indirectly . | . . Trap Hack Attempts . | . . Triggered . | . . Disarmed . | . . Reprogrammed . | . . Reused . | . . Traps Extracted . | . . Installed . | . . Triggered . | . . Machines | -11 -10 ---------- Run | Scr Mat Machines Disabled 2 | . 2 Max in Single Turn 1 | . 1 Machines Sabotaged . | . . Garrisons Compromised . | . . Overloaded Fab Kills . | . . Fab Network Shutdowns . | . . Hacking | -11 -10 --------- Run | Scr Mat Machines Accessed 2 | . 2 Terminals 2 | . 2 Fabricators . | . . Repair Stations . | . . Recycling Units . | . . Scanalyzers . | . . Garrison Access . | . . Total Hacks 7 | . 7 Successful 2 | . 2 Failed 5 | . 5 Catastrophic 1 | . 1 Database Lockouts . | . . Manual 6 | . 6 Terminals 7 | . 7 Fabricators . | . . Repair Stations . | . . Recycling Units . | . . Scanalyzers . | . . Garrison Access . | . . Terminal Hacks 2 | . 2 Level Access Points 1 | . 1 Hauler Manifests 1 | . 1 Fabricator Hacks . | . . Repair Station Hacks . | . . Recycling Unit Hacks . | . . Scanalyzer . | . . Garrison Access Hacks . | . . Unauthorized Hacks . | . . Terminals . | . . Fabricators . | . . Repair Stations . | . . Recycling Units . | . . Scanalyzers . | . . Garrison Access . | . . Data Cores Recovered . | . . Used . | . . Hacking Detections 1 | . 1 Full Trace Events . | . . Feedback Events . | . . Feedback Blocked . | . . Robot Schematics Acquired . | . . Robots Built . | . . Matter . | . . Time . | . . Total Robot Build Rating . | . . Part Schematics Acquired . | . . Parts Built . | . . Matter . | . . Time . | . . Total Part Build Rating . | . . Parts Repaired . | . . Time . | . . Parts Recycled . | . . Recycled Matter . | . . Retrieved Matter . | . . Retrieved Components . | . . Parts Scanalyzed . | . . Part Schematics Acquired . | . . Parts Damaged . | . . Bothacking | -11 -10 ------------ Run | Scr Mat Used RIF Installer . | . . Robots Hacked . | . . Non-combat . | . . Combat . | . . Robot Hacks Applied . | . . Relay Couplers Released . | . . Robots Rewired . | . . Allies Hacked . | . . Hacks Repelled . | . . Allies | -11 -10 -------- Run | Scr Mat Total Allies . | . . Largest Group . | . . Highest-Rated Group . | . . Highest-Rated Ally . | . . Total Orders . | . . Ally Attacks . | . . Total Damage . | . . Kills . | . . Allies Corrupted . | . . Allies Melted . | . . Intel | -11 -10 ------- Run | Scr Mat Robot Analysis Total . | . . Derelict Logs Recovered . | . . Drone Launches . | . . Drone Recoveries . | . . Exploration | -11 -10 ------------- Run | Scr Mat Turns Passed 623 | 88 535 Spaces Moved 273 | 50 223 Core 20 | 20 . Treads 253 | 30 223 Legs . | . . Wheels . | . . Hover . | . . Flight . | . . Fastest Speed 50 | 50 160 Average Speed 154 | 131 160 Slowest Speed 200 | 200 160 Overloaded Moves . | . . Propulsion Burnouts . | . . Robots Hopped . | . . Cave-ins Triggered . | . . Exploration Rate (%) 28 | 3 54 Regions Visited 1 Branch Regions . Pre-discovered Areas . | . . Known Exits Taken . | . . Unknown Exits Taken 1 | 1 . Scrap Searched . | . . Spaces Dug . | . . Terrain Destroyed 9 | . 9 Melee . | . . Projectile . | . . AOE 9 | . 9 Terrain Rammed . | . . Walls Destroyed . | . . Machines Disabled . | . . Actions | -11 -10 --------- Run | Scr Mat Total 383 | 68 315 Wait 19 | . 19 Move 272 | 49 223 Hop . | . . Pick Up 14 | 8 6 Fast Attach 2 | . 2 Attach 8 | 6 2 Detach . | . . Swap . | . . Drop 1 | . 1 Fire 50 | 5 45 Melee . | . . Ram 10 | . 10 Kick . | . . Crush 7 | . 7 Escape Stasis . | . . Rewire . | . . Trap . | . . Miscellaneous . | . . Route ------- -11/Scrapyard -10/Materials (discovered 4 exits: Mat x3 / [*Min]) History --------- Turn | Location | Event 5 | -11/Scrapyard | Discovered new exit (range 15) 89 | -11/Scrapyard | Entered Materials 186 | -10/Materials | Identified exit to Materials 274 | -10/Materials | Discovered new exit (range 16) 326 | -10/Materials | Build established: Mutant 571 | -10/Materials | Core integrity fell below 50% 617 | -10/Materials | Core integrity fell below 20% 624 | -10/Materials | Destroyed by G-47 Trooper with Particle Gun Last Messages --------------- 00599_ U-05 Engineer builds a Wall. 00600_ Assault Rifle destroyed. 00602_ Ion Engine destroyed. 00604_ U-05 Engineer lays Concrete. 00604_ Slammed into G-47 Trooper. 00605_ Acquired 30 matter. 00605_ U-05 Engineer lays Concrete. 00605_ Slammed into G-47 Trooper. 00606_ U-05 Engineer lays Concrete. 00607_ Slammed into G-47 Trooper. 00607_ U-05 Engineer lays Concrete. 00608_ U-05 Engineer builds a Wall. 00609_ Slammed into G-47 Trooper. 00614_ Lgt. Treads destroyed. 00615_ Slammed into G-47 Trooper. 00616_ Destabilizing: Core damaged (-12). 00617_ Slammed into G-47 Trooper. 00623_ R-06 Scavenger collects Aluminum Leg. 00623_ Slammed into G-47 Trooper. [Achievement: Back For More] Map ----- +----------------------------------------------------+ | | | | | | | ?????????????????????????????????????????????????? | | ?????????????????????????????????????????????????? | | ?????????????????????????????????????????????????? | | ?????????????????????????????????????????????????? | | ?????????????????????????????????????######??????? | | ?????????????????????????????????????# #??????? | | ?????????????????????????????????????#! #??????? | | ?????????????????????????????????????# #??????? | | ?????????????????????????#######?????# #??????? | | ?????????????????????????# [ #?????# #??????? | | ?????????????????????????# ####### "#??????? | | ?????????????????????????# u + T#??????? | | ?????????????????????????# ####### "#??????? | | ?????????????????????????# #?????# #??????? | | ?????????????????????????## ##?##########??????? | | ??????????????????????????# #? #?????????? | | ??????????????????????????# # """ #?????????? | | ??????????????????????????# !# """ #?????????? | | ???????? ############### r%# """ #?????